[Event "2nd Serbian League-Vojvodina 2023"]
[Site "Novi Sad"]
[Date "2023.11.08"]
[Round "10.3"]
[White "Popovic, Zoran"]
[Black "Dragojlovic, Andjelko"]
[Result "1/2-1/2"]
[ECO "E70"]
[WhiteElo "2210"]
[BlackElo "2108"]
[Annotator "RC"]
[PlyCount "80"]
[EventDate "2023.10.22"]
[EventType "team-tourn"]
[EventCountry "SRB"]
[SourceTitle "playchess.com"]
[Source "ChessBase"]
[SourceQuality "1"]
[TimeControl "40/5400+30:1800+30"]

1. d4 {[%emt 0:00:02]} g6 {[%emt 0:00:37]} 2. c4 {[%emt 0:00:10]} Nf6 {[%emt 0:00:36]} 3. Nc3 {[%emt 0:00:14]} Bg7 {[%emt 0:00:50]} 4. e4 {[%emt 0:00:07]} O-O {[%emt 0:00:07]} 5. Nf3 {[%emt 0:01:15]} c6 {[%emt 0:01:04]} 6. e5 {[%emt 0:11:50]} Ne8 {[%emt 0:00:09]} 7. Bf4 {[%emt 0:00:12]} d6 {[%emt 0:00:07]} 8. h3 {[%emt 0:00:07]} dxe5 {[%emt 0:05:26]} 9. dxe5 {[%emt 0:03:56]} Nc7 {[%emt 0:00:28]} 10. Bd3 {[%emt 0:16:07]} Ne6 {[%emt 0:00:49]} 11. Bg3 {[%emt 0:00:14]} Nd7 {[%emt 1:25:47]} 12. O-O {[%emt 0:00:15]} Ndc5 {[%emt 0:00:00]} 13. Bc2 {[%emt 0:00:29]} a5 {[%emt 0:00:00]} 14. Qxd8 {[%emt 0:02:39]} Rxd8 {[%emt 0:00:00]} 15. Rad1 {[%emt 0:01:29]} Bd7 {[%emt 0:00:00]} 16. b3 {[%emt 0:06:41]} Bh6 {[%emt 0:00:00]} 17. Ne2 {[%emt 0:06:16]} Kf8 {[%emt 0:00:00]} 18. Nfd4 {[%emt 0:00:52]} Nxd4 {[%emt 0:00:00]} 19. Nxd4 {[%emt 0:00:36]} Ke8 {[%emt 0:00:00]} 20. f4 {[%emt 0:01:33]} Ne6 {[%emt 0:00:00]} 21. Ne2 {[%emt 0:02:47]} Ng7 {[%emt 0:00:00]} 22. Bf2 {[%emt 0:00:38]} Bf5 {[%emt 0:00:00]} 23. Bxf5 {[%emt 0:01:29]} Rxd1 {[%emt 0:00:00]} 24. Rxd1 {[%emt 0:00:27]} gxf5 {[%emt 0:00:00]} 25. Bb6 {[%emt 0:09:04]} Ne6 {[%emt 0:00:00]} 26. g3 {[%emt 0:00:20]} Nf8 {[%emt 0:00:00]} 27. Nc3 {[%emt 0:04:20]} Nd7 {[%emt 0:00:00]} 28. Bf2 {[%emt 0:04:24]} e6 {[%emt 0:00:00]} 29. Kg2 {[%emt 0:00:31]} Bf8 {[%emt 0:00:00]} 30. g4 {[%emt 0:01:59]} Bb4 {[%emt 0:00:00]} 31. Na4 {[%emt 0:00:34]} b5 {[%emt 0:00:00]} 32. Rxd7 {[%emt 0:04:47]} bxa4 {[%emt 0:00:00]} 33. Rc7 {[%emt 0:00:21]} axb3 {[%emt 0:00:00]} 34. axb3 {[%emt 0:00:12]} Rd8 {[%emt 0:00:00]} 35. Rxc6 {[%emt 0:21:03]} Rd2 {[%emt 0:00:00]} 36. Kf1 {[%emt 0:00:00]} Rd1+ {[%emt 0:12:30]} 37. Ke2 {[%emt 0:00:00]} Rd2+ {[%emt 0:00:00]} 38. Kf1 {[%emt 0:00:00]} Rd1+ {[%emt 0:00:00]} 39. Kg2 {[%emt 0:00:00]} Rd2 {[%emt 0:00:00]} 40. Kf1 {[%emt 0:00:00]} Rd1+ {[%emt 0:00:00]} 1/2-1/2

[Event "2nd Serbian League-Vojvodina 2023"]
[Site "Novi Sad"]
[Date "2023.11.08"]
[Round "10.4"]
[White "Djacanin, Goran"]
[Black "Telecki, Ivan"]
[Result "1-0"]
[ECO "B06"]
[WhiteElo "2134"]
[BlackElo "2260"]
[Annotator "RC"]
[PlyCount "89"]
[EventDate "2023.10.22"]
[EventType "team-tourn"]
[EventCountry "SRB"]
[SourceTitle "playchess.com"]
[Source "ChessBase"]
[SourceQuality "1"]
[TimeControl "40/5400+30:1800+30"]

1. e4 {[%emt 0:00:42]} g6 {[%emt 0:00:06]} 2. Nc3 {[%emt 0:01:20]} Bg7 {[%emt 0:00:07]} 3. g3 {[%emt 0:00:41]} d6 {[%emt 0:00:35]} 4. Bg2 {[%emt 0:00:22]} Nd7 {[%emt 0:00:34]} 5. Nge2 {[%emt 0:00:30]} e5 {[%emt 0:04:20]} 6. d3 {[%emt 0:01:48]} h5 {[%emt 0:03:00]} 7. h3 {[%emt 0:00:57]} c6 {[%emt 0:08:00]} 8. Be3 {[%emt 0:01:14]} b5 {[%emt 0:03:32]} 9. a3 {[%emt 0:05:12]} Bb7 {[%emt 0:05:24]} 10. O-O {[%emt 0:02:05]} a5 {[%emt 0:06:16]} 11. f4 {[%emt 0:04:05]} Bh6 {[%emt 1:04:06]} 12. Qd2 {[%emt 1:17:34]} exf4 {[%emt 0:00:00]} 13. Bxf4 {[%emt 0:00:00]} Qe7 {[%emt 0:00:00]} 14. Bxh6 {[%emt 0:00:00]} Nxh6 {[%emt 0:00:00]} 15. d4 {[%emt 0:00:00]} b4 {[%emt 0:00:00]} 16. Nd1 {[%emt 0:00:00]} c5 {[%emt 0:00:00]} 17. Nf4 {[%emt 0:00:00]} Qg5 {[%emt 0:00:00]} 18. Ne3 {[%emt 0:00:00]} O-O {[%emt 0:00:00]} 19. Kh2 {[%emt 0:00:00]} h4 {[%emt 0:00:00]} 20. gxh4 {[%emt 0:00:00]} Qxh4 {[%emt 0:00:00]} 21. Nfd5 {[%emt 0:00:00]} Qg5 {[%emt 0:00:00]} 22. Rf4 {[%emt 0:00:00]} cxd4 {[%emt 0:02:09]} 23. Qxd4 {[%emt 0:00:00]} Qe5 {[%emt 0:00:09]} 24. Qxe5 {[%emt 0:00:00]} dxe5 {[%emt 0:01:32]} 25. Rff1 {[%emt 0:00:00]} b3 {[%emt 0:00:52]} 26. cxb3 {[%emt 0:00:00]} Nc5 {[%emt 0:00:05]} 27. b4 {[%emt 0:00:00]} Nd3 {[%emt 0:00:35]} 28. Rfd1 {[%emt 0:00:00]} Nxb2 {[%emt 0:00:08]} 29. Rd2 {[%emt 0:00:00]} Na4 {[%emt 0:00:06]} 30. b5 {[%emt 0:00:00]} Kg7 {[%emt 0:00:55]} 31. Rc1 {[%emt 0:09:30]} Rfc8 {[%emt 0:00:18]} 32. Rdc2 {[%emt 0:00:00]} Rxc2 {[%emt 0:00:03]} 33. Rxc2 {[%emt 0:00:00]} Rc8 {[%emt 0:00:07]} 34. Rxc8 {[%emt 0:00:00]} Bxc8 {[%emt 0:00:08]} 35. Nc4 {[%emt 0:00:00]} Bb7 {[%emt 0:01:12]} 36. Nxa5 {[%emt 0:00:00]} Bxd5 {[%emt 0:00:05]} 37. exd5 {[%emt 0:00:00]} Nf5 {[%emt 0:00:15]} 38. Nc4 {[%emt 0:00:00]} Kf8 {[%emt 0:01:34]} 39. d6 {[%emt 0:00:00]} Ke8 {[%emt 0:02:52]} 40. b6 {[%emt 0:00:00]} Nxb6 {[%emt 0:00:08]} 41. Nxb6 {[%emt 0:24:42]} Nxd6 {[%emt 0:30:04]} 42. Bd5 {[%emt 0:01:59]} g5 {[%emt 0:00:16]} 43. Nc4 {[%emt 0:00:38]} Nxc4 {[%emt 0:01:14]} 44. Bxc4 {[%emt 0:00:07]} f5 {[%emt 0:00:03]} 45. Be6 {[%emt 0:00:29]} 1-0

[Event "2nd Serbian League-Vojvodina 2023"]
[Site "Novi Sad"]
[Date "2023.11.08"]
[Round "10.5"]
[White "Varga, Robert"]
[Black "Ilincic, Aleksa"]
[Result "1-0"]
[ECO "A31"]
[WhiteElo "2043"]
[BlackElo "2235"]
[Annotator "RC"]
[PlyCount "67"]
[EventDate "2023.10.22"]
[EventType "team-tourn"]
[EventCountry "SRB"]
[SourceTitle "playchess.com"]
[Source "ChessBase"]
[SourceQuality "1"]
[TimeControl "40/5400+30:1800+30"]

1. d4 {[%emt 0:01:14]} Nf6 {[%emt 0:00:14]} 2. c4 {[%emt 0:00:17]} c5 {[%emt 0:00:07]} 3. Nf3 {[%emt 0:00:54]} cxd4 {[%emt 0:00:47]} 4. Nxd4 {[%emt 0:00:09]} e5 {[%emt 0:00:26]} 5. Nb5 {[%emt 0:01:02]} d5 {[%emt 0:00:53]} 6. cxd5 {[%emt 0:01:05]} a6 {[%emt 0:00:24]} 7. N5c3 {[%emt 0:01:00]} Bc5 {[%emt 0:00:30]} 8. e3 {[%emt 0:02:08]} O-O {[%emt 0:00:38]} 9. Be2 {[%emt 0:00:39]} b5 {[%emt 0:01:48]} 10. a3 {[%emt 0:01:10]} Bb7 {[%emt 0:01:11]} 11. b4 {[%emt 0:02:25]} Bd6 {[%emt 0:01:45]} 12. e4 {[%emt 0:01:50]} Nbd7 {[%emt 0:00:49]} 13. O-O {[%emt 1:23:07]} Rc8 {[%emt 0:01:26]} 14. Be3 {[%emt 0:00:00]} Nb6 {[%emt 0:00:20]} 15. Qb3 {[%emt 0:00:00]} Nc4 {[%emt 0:20:37]} 16. Bxc4 {[%emt 0:00:00]} Rxc4 {[%emt 0:00:19]} 17. Nd2 {[%emt 0:00:00]} Rc8 {[%emt 0:00:06]} 18. h3 {[%emt 0:00:00]} Qe7 {[%emt 0:08:49]} 19. Rfc1 {[%emt 0:00:00]} Nh5 {[%emt 0:06:53]} 20. Ne2 {[%emt 0:00:00]} Nf4 {[%emt 0:02:32]} 21. Nxf4 {[%emt 0:00:00]} exf4 {[%emt 0:00:23]} 22. Bd4 {[%emt 0:00:00]} Rxc1+ {[%emt 0:14:22]} 23. Rxc1 {[%emt 0:00:00]} f3 {[%emt 0:00:41]} 24. Qxf3 {[%emt 0:00:00]} f5 {[%emt 0:36:30]} 25. Bc5 {[%emt 0:00:00]} fxe4 {[%emt 0:00:00]} 26. Qxe4 {[%emt 0:00:00]} Bxc5 {[%emt 0:00:00]} 27. Rxc5 {[%emt 0:00:00]} Qf7 {[%emt 0:00:00]} 28. Qd4 {[%emt 0:00:00]} Rd8 {[%emt 0:00:00]} 29. Ne4 {[%emt 0:00:00]} Qg6 {[%emt 0:00:00]} 30. f3 {[%emt 0:00:00]} h6 {[%emt 0:00:00]} 31. Qe5 {[%emt 0:00:00]} Re8 {[%emt 0:00:00]} 32. Qd6 {[%emt 0:00:00]} Qf5 {[%emt 0:00:23]} 33. Qg3 {[%emt 0:00:00]} Bxd5 {[%emt 0:02:27]} 34. Rxd5 {[%emt 0:00:00]} 1-0

[Event "2nd Serbian League-Vojvodina 2023"]
[Site "Novi Sad"]
[Date "2023.11.08"]
[Round "10.6"]
[White "Stikovic, Dobrica"]
[Black "Sukunda, Dejan"]
[Result "1-0"]
[ECO "E65"]
[WhiteElo "2162"]
[BlackElo "2010"]
[Annotator "RC"]
[PlyCount "71"]
[EventDate "2023.10.22"]
[EventType "team-tourn"]
[EventCountry "SRB"]
[SourceTitle "playchess.com"]
[Source "ChessBase"]
[SourceQuality "1"]
[TimeControl "40/5400+30:1800+30"]

1. c4 {[%emt 0:00:03]} Nf6 {[%emt 0:02:17]} 2. Nc3 {[%emt 0:00:08]} g6 {[%emt 0:00:18]} 3. Nf3 {[%emt 0:00:27]} Bg7 {[%emt 0:00:10]} 4. g3 {[%emt 0:00:17]} O-O {[%emt 0:00:09]} 5. Bg2 {[%emt 0:00:07]} d6 {[%emt 1:30:06]} 6. O-O {[%emt 1:32:28]} c5 {[%emt 0:00:00]} 7. d4 {[%emt 0:00:00]} Nc6 {[%emt 0:00:00]} 8. h3 {[%emt 0:00:00]} Rb8 {[%emt 0:00:00]} 9. dxc5 {[%emt 0:00:00]} dxc5 {[%emt 0:02:00]} 10. Bf4 {[%emt 0:02:00]} Ra8 {[%emt 0:00:00]} 11. Qc1 {[%emt 0:00:00]} Be6 {[%emt 0:00:00]} 12. Nb5 {[%emt 0:00:00]} Rc8 {[%emt 0:00:00]} 13. Ng5 {[%emt 0:00:00]} Bd7 {[%emt 0:00:00]} 14. Rd1 {[%emt 0:00:00]} a6 {[%emt 0:00:00]} 15. Nc3 {[%emt 0:00:00]} Qa5 {[%emt 0:00:00]} 16. Bd2 {[%emt 0:00:00]} Qc7 {[%emt 0:00:00]} 17. Kh2 {[%emt 0:00:00]} Nd4 {[%emt 0:00:00]} 18. e3 {[%emt 0:00:00]} Ne6 {[%emt 0:00:00]} 19. Nxe6 {[%emt 0:00:00]} Bxe6 {[%emt 0:00:00]} 20. Nd5 {[%emt 0:00:00]} Nxd5 {[%emt 0:00:00]} 21. cxd5 {[%emt 0:00:00]} Bd7 {[%emt 0:00:00]} 22. Bc3 {[%emt 0:00:00]} e5 {[%emt 0:00:00]} 23. Qd2 {[%emt 0:00:00]} Qd6 {[%emt 0:00:00]} 24. a4 {[%emt 0:00:00]} b5 {[%emt 0:00:00]} 25. axb5 {[%emt 0:00:00]} axb5 {[%emt 0:00:00]} 26. b4 {[%emt 0:00:00]} c4 {[%emt 0:00:00]} 27. Ra5 {[%emt 0:00:00]} f5 {[%emt 0:00:00]} 28. Qb2 {[%emt 0:00:00]} Bf6 {[%emt 0:00:00]} 29. e4 {[%emt 0:00:00]} f4 {[%emt 0:00:00]} 30. gxf4 {[%emt 0:00:00]} Rce8 {[%emt 0:00:00]} 31. Re1 {[%emt 0:00:00]} g5 {[%emt 0:00:00]} 32. f5 {[%emt 0:00:00]} Bd8 {[%emt 0:00:00]} 33. Ra8 {[%emt 0:00:00]} g4 {[%emt 0:01:03]} 34. hxg4 {[%emt 0:00:00]} Qh6+ {[%emt 0:00:32]} 35. Kg1 {[%emt 0:00:00]} Qf4 {[%emt 0:00:44]} 36. Qe2 {[%emt 0:00:00]} 1-0

[Event "2nd Serbian League-Vojvodina 2023"]
[Site "Novi Sad"]
[Date "2023.11.08"]
[Round "10.7"]
[White "Samani, Yamac"]
[Black "Balla, Tamas-Kristof"]
[Result "1-0"]
[ECO "B01"]
[WhiteElo "2349"]
[BlackElo "2308"]
[Annotator "RC"]
[PlyCount "81"]
[EventDate "2023.10.22"]
[EventType "team-tourn"]
[EventCountry "SRB"]
[SourceTitle "playchess.com"]
[Source "ChessBase"]
[SourceQuality "1"]
[TimeControl "40/5400+30:1800+30"]

1. e4 {[%emt 0:00:03]} d5 {[%emt 0:05:44]} 2. exd5 {[%emt 0:00:20]} Qxd5 {[%emt 0:00:05]} 3. Nc3 {[%emt 0:00:10]} Qa5 {[%emt 0:00:04]} 4. d4 {[%emt 0:00:20]} Nf6 {[%emt 0:00:06]} 5. Nf3 {[%emt 0:00:20]} Bf5 {[%emt 0:00:05]} 6. Bc4 {[%emt 0:01:22]} e6 {[%emt 0:01:04]} 7. Bd2 {[%emt 0:02:33]} Bb4 {[%emt 0:00:30]} 8. Qe2 {[%emt 0:09:09]} O-O {[%emt 0:02:28]} 9. O-O-O {[%emt 0:03:39]} Nc6 {[%emt 0:03:17]} 10. h3 {[%emt 1:17:34]} Rad8 {[%emt 0:04:25]} 11. g4 {[%emt 0:00:30]} Bg6 {[%emt 1:18:12]} 12. Be1 {[%emt 0:00:00]} Nd5 {[%emt 0:00:00]} 13. Nxd5 {[%emt 0:00:00]} exd5 {[%emt 0:00:00]} 14. Bb3 {[%emt 0:01:30]} Rfe8 {[%emt 0:00:00]} 15. Ne5 {[%emt 0:00:30]} Bxe1 {[%emt 0:02:00]} 16. Rhxe1 {[%emt 0:00:30]} Nxe5 {[%emt 0:00:00]} 17. dxe5 {[%emt 0:00:00]} c6 {[%emt 0:00:00]} 18. f4 {[%emt 0:00:00]} Be4 {[%emt 0:00:00]} 19. h4 {[%emt 0:00:00]} b5 {[%emt 0:00:00]} 20. Qe3 {[%emt 0:00:00]} b4 {[%emt 0:00:00]} 21. Rd2 {[%emt 0:02:30]} Ra8 {[%emt 0:00:00]} 22. h5 {[%emt 0:00:30]} Qb5 {[%emt 0:00:00]} 23. Rd4 {[%emt 0:00:30]} a5 {[%emt 0:04:00]} 24. Rxe4 {[%emt 0:00:00]} dxe4 {[%emt 0:00:00]} 25. Qxe4 {[%emt 0:00:00]} Qc5 {[%emt 0:00:00]} 26. g5 {[%emt 0:00:00]} a4 {[%emt 0:00:00]} 27. Bc4 {[%emt 0:00:00]} Kf8 {[%emt 0:02:00]} 28. g6 {[%emt 0:00:00]} hxg6 {[%emt 0:00:00]} 29. hxg6 {[%emt 0:00:00]} f6 {[%emt 0:00:00]} 30. Rh1 {[%emt 0:00:00]} Ke7 {[%emt 0:00:00]} 31. b3 {[%emt 0:00:00]} a3 {[%emt 0:00:00]} 32. Bf7 {[%emt 0:04:30]} Kd7 {[%emt 0:00:00]} 33. Bxe8+ {[%emt 0:00:00]} Rxe8 {[%emt 0:00:00]} 34. Rd1+ {[%emt 0:00:00]} Kc7 {[%emt 0:00:00]} 35. Qd3 {[%emt 0:01:30]} Kb6 {[%emt 0:04:00]} 36. exf6 {[%emt 0:00:00]} gxf6 {[%emt 0:00:30]} 37. Qd4 {[%emt 0:00:00]} f5 {[%emt 0:00:30]} 38. Qxc5+ {[%emt 0:00:00]} Kxc5 {[%emt 0:00:00]} 39. g7 {[%emt 0:00:00]} Kb6 {[%emt 0:00:00]} 40. Rg1 {[%emt 0:00:00]} Rg8 {[%emt 0:00:00]} 41. Rg5 {[%emt 0:27:55]} 1-0

[Event "2nd Serbian League-Vojvodina 2023"]
[Site "Novi Sad"]
[Date "2023.11.08"]
[Round "10.8"]
[White "Kopasz, Robert"]
[Black "Alimpic, Aleksa"]
[Result "1-0"]
[ECO "B12"]
[WhiteElo "2241"]
[BlackElo "2290"]
[Annotator "RC"]
[PlyCount "191"]
[EventDate "2023.10.22"]
[EventType "team-tourn"]
[EventCountry "SRB"]
[SourceTitle "playchess.com"]
[Source "ChessBase"]
[SourceQuality "1"]
[TimeControl "40/5400+30:1800+30"]

1. e4 {[%emt 0:00:25]} c6 {[%emt 0:00:06]} 2. d4 {[%emt 0:01:23]} d5 {[%emt 0:00:06]} 3. e5 {[%emt 0:00:21]} Bf5 {[%emt 0:00:08]} 4. Nf3 {[%emt 0:00:15]} e6 {[%emt 0:00:08]} 5. Be2 {[%emt 0:00:32]} c5 {[%emt 0:00:16]} 6. O-O {[%emt 0:02:10]} Nc6 {[%emt 0:00:10]} 7. dxc5 {[%emt 0:03:06]} Bxc5 {[%emt 0:00:08]} 8. Nbd2 {[%emt 0:01:03]} Nge7 {[%emt 0:02:42]} 9. a3 {[%emt 0:04:24]} a5 {[%emt 0:09:38]} 10. c4 {[%emt 0:02:59]} O-O {[%emt 0:01:32]} 11. Nb3 {[%emt 0:08:04]} Bb6 {[%emt 0:01:23]} 12. Bg5 {[%emt 0:09:03]} Qb8 {[%emt 0:05:40]} 13. Bxe7 {[%emt 0:03:44]} Nxe7 {[%emt 0:00:08]} 14. cxd5 {[%emt 0:00:09]} Nxd5 {[%emt 0:00:15]} 15. Bd3 {[%emt 0:00:20]} Ne7 {[%emt 0:09:28]} 16. Bxf5 {[%emt 0:01:49]} Nxf5 {[%emt 0:00:13]} 17. Rc1 {[%emt 0:02:31]} Qa7 {[%emt 0:02:42]} 18. Qe2 {[%emt 0:02:00]} Rfd8 {[%emt 0:02:42]} 19. Rc2 {[%emt 0:01:30]} Rd5 {[%emt 0:10:26]} 20. g3 {[%emt 0:05:14]} Rad8 {[%emt 0:03:30]} 21. Rfc1 {[%emt 0:01:46]} Ne7 {[%emt 0:01:14]} 22. Kg2 {[%emt 0:05:57]} Nc6 {[%emt 0:01:44]} 23. Rd2 {[%emt 0:02:10]} Qb8 {[%emt 0:05:29]} 24. Rcd1 {[%emt 0:04:58]} Rxd2 {[%emt 0:01:25]} 25. Rxd2 {[%emt 0:00:11]} a4 {[%emt 0:03:27]} 26. Qb5 {[%emt 0:12:05]} Rxd2 {[%emt 0:07:29]} 27. Nbxd2 {[%emt 0:00:44]} Qa7 {[%emt 0:00:10]} 28. Ne4 {[%emt 0:03:05]} Qa5 {[%emt 0:02:39]} 29. Qc4 {[%emt 0:02:42]} Ba7 {[%emt 0:04:21]} 30. Nd6 {[%emt 0:06:24]} Qb6 {[%emt 0:03:35]} 31. Qc2 {[%emt 0:00:12]} h6 {[%emt 0:01:04]} 32. Ne4 {[%emt 0:02:48]} Qa5 {[%emt 0:03:54]} 33. Nc3 {[%emt 0:05:38]} Qc5 {[%emt 0:00:28]} 34. Qe2 {[%emt 0:00:25]} Nd4 {[%emt 0:05:35]} 35. Nxd4 {[%emt 0:01:34]} Qxd4 {[%emt 0:00:06]} 36. f4 {[%emt 0:00:12]} Bb6 {[%emt 0:08:56]} 37. Kh3 {[%emt 0:01:25]} Bd8 {[%emt 0:01:53]} 38. Qb5 {[%emt 0:00:43]} g5 {[%emt 0:00:46]} 39. Qxa4 {[%emt 0:00:36]} Qd3 {[%emt 0:00:10]} 40. Qd1 {[%emt 0:01:06]} Qxd1 {[%emt 0:00:50]} 41. Nxd1 {[%emt 0:30:01]} gxf4 {[%emt 0:30:23]} 42. gxf4 {[%emt 0:00:02]} f6 {[%emt 0:00:16]} 43. Kg4 {[%emt 0:00:21]} Bc7 {[%emt 0:00:38]} 44. exf6 {[%emt 0:01:15]} Kf7 {[%emt 0:00:05]} 45. Nf2 {[%emt 0:00:19]} Kxf6 {[%emt 0:00:30]} 46. Ne4+ {[%emt 0:00:29]} Kg6 {[%emt 0:00:59]} 47. Ng3 {[%emt 0:00:04]} Bb6 {[%emt 0:01:02]} 48. h4 {[%emt 0:00:37]} Bd4 {[%emt 0:00:13]} 49. b3 {[%emt 0:00:01]} Bb2 {[%emt 0:01:05]} 50. a4 {[%emt 0:00:01]} Bc3 {[%emt 0:00:06]} 51. h5+ {[%emt 0:00:03]} Kf7 {[%emt 0:00:02]} 52. Kf3 {[%emt 0:00:11]} Ke7 {[%emt 0:00:29]} 53. Ke4 {[%emt 0:00:18]} Bd2 {[%emt 0:00:38]} 54. Ne2 {[%emt 0:00:22]} Kd6 {[%emt 0:00:19]} 55. Nd4 {[%emt 0:00:37]} b6 {[%emt 0:00:36]} 56. Nf3 {[%emt 0:01:13]} Bc3 {[%emt 0:01:52]} 57. Kd3 {[%emt 0:00:44]} Bb2 {[%emt 0:00:19]} 58. Nd2 {[%emt 0:02:09]} Kc5 {[%emt 0:01:19]} 59. Nc4 {[%emt 0:00:21]} Ba1 {[%emt 0:01:00]} 60. Ke4 {[%emt 0:00:35]} Bc3 {[%emt 0:00:12]} 61. Kd3 {[%emt 0:01:20]} Ba1 {[%emt 0:00:08]} 62. Ne3 {[%emt 0:00:28]} Bg7 {[%emt 0:00:59]} 63. Nc2 {[%emt 0:00:27]} Kd5 {[%emt 0:01:18]} 64. b4 {[%emt 0:00:17]} Bb2 {[%emt 0:00:31]} 65. Ne3+ {[%emt 0:00:17]} Kc6 {[%emt 0:00:04]} 66. Ng4 {[%emt 0:00:38]} Bg7 {[%emt 0:00:20]} 67. Kc4 {[%emt 0:00:14]} Bf8 {[%emt 0:00:46]} 68. Ne5+ {[%emt 0:00:10]} Kc7 {[%emt 0:00:18]} 69. a5 {[%emt 0:00:41]} bxa5 {[%emt 0:00:06]} 70. bxa5 {[%emt 0:00:00]} Ba3 {[%emt 0:00:24]} 71. Nd3 {[%emt 0:01:01]} Kc6 {[%emt 0:00:26]} 72. Nb4+ {[%emt 0:00:34]} Kc7 {[%emt 0:00:09]} 73. Nd3 {[%emt 0:05:27]} Kc6 {[%emt 0:01:40]} 74. a6 {[%emt 0:00:00]} Bd6 {[%emt 0:00:53]} 75. a7 {[%emt 0:00:00]} Kb7 {[%emt 0:00:07]} 76. Nc5+ {[%emt 0:00:00]} Kxa7 {[%emt 0:00:06]} 77. Nxe6 {[%emt 0:00:00]} Kb7 {[%emt 0:00:27]} 78. Kd5 {[%emt 0:00:00]} Ba3 {[%emt 0:00:09]} 79. Ng7 {[%emt 0:00:00]} Kc7 {[%emt 0:00:30]} 80. Nf5 {[%emt 0:00:00]} Kd7 {[%emt 0:00:20]} 81. Nxh6 {[%emt 0:00:00]} Ke7 {[%emt 0:00:06]} 82. Ke5 {[%emt 0:04:30]} Bc1 {[%emt 0:00:42]} 83. Kf5 {[%emt 0:00:00]} Kf8 {[%emt 0:00:24]} 84. Ng4 {[%emt 0:00:00]} Kg7 {[%emt 0:00:20]} 85. Kg5 {[%emt 0:00:00]} Bd2 {[%emt 0:00:13]} 86. Kf5 {[%emt 0:00:00]} Bc1 {[%emt 0:00:21]} 87. Ke5 {[%emt 0:00:00]} Kf7 {[%emt 0:00:23]} 88. Kf5 {[%emt 0:00:00]} Bd2 {[%emt 0:03:41]} 89. Nf2 {[%emt 0:00:00]} Kg7 {[%emt 0:00:00]} 90. Kg5 {[%emt 0:04:00]} Ba5 {[%emt 0:00:00]} 91. h6+ {[%emt 0:00:00]} Kh7 {[%emt 0:00:00]} 92. Kh5 {[%emt 0:00:00]} Bd2 {[%emt 0:00:00]} 93. Nh3 {[%emt 0:01:30]} Bc3 {[%emt 0:00:00]} 94. Ng5+ {[%emt 0:00:00]} Kg8 {[%emt 0:00:00]} 95. Kg6 {[%emt 0:00:00]} Ba1 {[%emt 0:00:00]} 96. f5 {[%emt 0:01:30]} 1-0

[Event "2nd Serbian League-Vojvodina 2023"]
[Site "Novi Sad"]
[Date "2023.11.08"]
[Round "10.9"]
[White "Pajcin, Lav"]
[Black "Nagy, Attila N"]
[Result "1/2-1/2"]
[ECO "B27"]
[WhiteElo "2109"]
[BlackElo "2164"]
[Annotator "RC"]
[PlyCount "62"]
[EventDate "2023.10.22"]
[EventType "team-tourn"]
[EventCountry "SRB"]
[SourceTitle "playchess.com"]
[Source "ChessBase"]
[SourceQuality "1"]
[TimeControl "40/5400+30:1800+30"]

1. e4 {[%emt 0:00:06]} c5 {[%emt 0:00:24]} 2. Nf3 {[%emt 1:31:24]} g6 {[%emt 1:31:06]} 3. d4 {[%emt 0:00:00]} cxd4 {[%emt 0:00:00]} 4. Qxd4 {[%emt 0:00:00]} Nf6 {[%emt 0:00:00]} 5. Nc3 {[%emt 0:00:00]} Nc6 {[%emt 0:00:00]} 6. Qa4 {[%emt 0:02:00]} d6 {[%emt 0:02:00]} 7. e5 {[%emt 0:00:30]} dxe5 {[%emt 0:00:00]} 8. Nxe5 {[%emt 0:00:30]} Qd4 {[%emt 0:01:00]} 9. Nxc6 {[%emt 0:00:00]} Qxa4 {[%emt 0:00:00]} 10. Nxa4 {[%emt 0:00:00]} bxc6 {[%emt 0:01:00]} 11. Be3 {[%emt 0:00:00]} Bg7 {[%emt 0:00:00]} 12. O-O-O {[%emt 0:00:00]} O-O {[%emt 0:00:00]} 13. Be2 {[%emt 0:00:00]} Bf5 {[%emt 0:00:00]} 14. c4 {[%emt 0:00:00]} Ng4 {[%emt 0:00:00]} 15. Bxg4 {[%emt 0:00:00]} Bxg4 {[%emt 0:00:00]} 16. f3 {[%emt 0:00:00]} Be6 {[%emt 0:00:00]} 17. b3 {[%emt 0:00:00]} h5 {[%emt 0:00:00]} 18. Rhe1 {[%emt 0:00:00]} Rfe8 {[%emt 0:04:00]} 19. Bd4 {[%emt 0:00:00]} Bh6+ {[%emt 0:00:00]} 20. Kb2 {[%emt 0:00:00]} Bf5 {[%emt 0:00:00]} 21. Nc5 {[%emt 0:06:30]} a5 {[%emt 0:01:30]} 22. h3 {[%emt 0:00:30]} h4 {[%emt 0:00:30]} 23. Bc3 {[%emt 0:00:30]} Bf4 {[%emt 0:00:30]} 24. Be5 {[%emt 0:00:00]} Bh6 {[%emt 0:00:30]} 25. Bc3 {[%emt 0:01:00]} Bf4 {[%emt 0:00:30]} 26. Rd4 {[%emt 0:00:30]} Bg3 {[%emt 0:00:00]} 27. Re2 {[%emt 0:00:00]} g5 {[%emt 0:00:00]} 28. Rd1 {[%emt 0:00:00]} f6 {[%emt 0:01:30]} 29. a4 {[%emt 0:01:30]} Kf7 {[%emt 0:00:00]} 30. Nb7 {[%emt 0:00:30]} Bc7 {[%emt 0:00:00]} 31. Nc5 {[%emt 0:00:30]} Rec8 {[%emt 0:01:30]} 1/2-1/2

[Event "2nd Serbian League-Vojvodina 2023"]
[Site "Novi Sad"]
[Date "2023.11.08"]
[Round "10.10"]
[White "Gusev, Mikhail"]
[Black "Gagic, Milan A"]
[Result "1/2-1/2"]
[ECO "B15"]
[WhiteElo "2012"]
[BlackElo "2164"]
[Annotator "RC"]
[PlyCount "60"]
[EventDate "2023.10.22"]
[EventType "team-tourn"]
[EventCountry "SRB"]
[SourceTitle "playchess.com"]
[Source "ChessBase"]
[SourceQuality "1"]
[TimeControl "40/5400+30:1800+30"]

1. e4 {[%emt 0:00:02]} c6 {[%emt 0:00:06]} 2. d4 {[%emt 0:00:05]} d5 {[%emt 0:00:11]} 3. Nd2 {[%emt 0:00:07]} dxe4 {[%emt 0:00:13]} 4. Nxe4 {[%emt 0:00:05]} Nf6 {[%emt 0:00:34]} 5. Nxf6+ {[%emt 0:00:09]} exf6 {[%emt 0:00:05]} 6. c3 {[%emt 0:00:12]} Bd6 {[%emt 0:01:04]} 7. Bd3 {[%emt 0:00:35]} O-O {[%emt 0:00:09]} 8. Qc2 {[%emt 0:00:07]} Re8+ {[%emt 0:00:04]} 9. Ne2 {[%emt 0:00:05]} h5 {[%emt 0:00:03]} 10. O-O {[%emt 0:00:08]} h4 {[%emt 0:00:03]} 11. h3 {[%emt 0:00:06]} Nd7 {[%emt 0:00:03]} 12. Be3 {[%emt 0:03:44]} Nf8 {[%emt 0:00:58]} 13. c4 {[%emt 0:01:58]} Be6 {[%emt 0:03:18]} 14. Rad1 {[%emt 0:03:10]} Rc8 {[%emt 0:01:23]} 15. Nf4 {[%emt 0:02:41]} Bb8 {[%emt 0:04:23]} 16. Nxe6 {[%emt 0:21:26]} Nxe6 {[%emt 0:00:28]} 17. Bh7+ {[%emt 0:01:13]} Kh8 {[%emt 0:00:58]} 18. Be4 {[%emt 0:04:19]} g5 {[%emt 0:11:16]} 19. d5 {[%emt 0:08:13]} cxd5 {[%emt 0:03:56]} 20. Rxd5 {[%emt 0:09:40]} Qc7 {[%emt 0:03:09]} 21. f4 {[%emt 0:00:58]} Qxc4 {[%emt 0:07:27]} 22. Qxc4 {[%emt 0:04:09]} Rxc4 {[%emt 0:00:28]} 23. Bd3 {[%emt 0:00:02]} Nxf4 {[%emt 0:04:44]} 24. Bxc4 {[%emt 0:00:27]} Nxd5 {[%emt 0:00:12]} 25. Bxg5 {[%emt 0:01:08]} fxg5 {[%emt 0:00:21]} 26. Bxd5 {[%emt 0:00:02]} f6 {[%emt 0:01:47]} 27. Rxf6 {[%emt 0:02:15]} Re1+ {[%emt 0:00:49]} 28. Rf1 {[%emt 0:00:02]} Bh2+ {[%emt 0:00:04]} 29. Kf2 {[%emt 0:00:01]} Bg3+ {[%emt 0:00:07]} 30. Kg1 {[%emt 0:00:13]} Bh2+ {[%emt 0:00:08]} 1/2-1/2